{"text_format":"1","workbook":"xlsx","n_sheets":2,"sheets":["Danışmanlık Bilgileri","Form"],"not_rendered":{"charts":0,"images":1,"macros":1,"external_links":0,"defined_names":40,"comments":0,"pivot_tables":0},"unopened":[],"bounds":{"document_bytes":16777216,"sheet_cells":100000,"rows_first":2000,"rows_last":500,"rows_between":2000,"halvings":0,"cell_chars":16384,"cell_head_chars":4096},"cells_cut":0,"cells_raw":0,"read":"whole","date_system":"1900"}

{"sheet":"Danışmanlık Bilgileri","index":0,"n_rows":105,"n_cols":81,"rows_kept":105,"cut":false,"hidden":false,"merged":[[39,8,39,17],[50,4,50,9],[43,8,43,17],[48,4,48,9],[52,4,52,9],[40,4,40,7],[71,62,71,68],[85,8,85,17],[87,8,87,17],[70,62,70,68],[69,62,69,68],[76,8,76,17],[83,8,83,17],[74,8,74,17],[30,4,30,7],[41,4,41,7],[41,8,41,17],[78,8,78,17],[39,4,39,7],[35,4,35,7],[35,8,35,27],[37,4,37,7],[37,8,37,27],[78,4,78,7],[2,3,2,42],[18,4,18,6],[16,4,16,6],[11,31,11,39],[6,3,6,14],[26,27,26,30],[26,4,26,7],[26,8,26,17],[11,40,11,43],[28,27,28,30],[11,25,11,28],[16,7,16,25],[18,7,18,25],[28,8,28,17],[39,34,39,40],[21,13,21,20],[28,4,28,7],[30,8,30,17],[30,27,30,30],[101,4,101,21],[62,4,62,10],[57,4,57,40],[48,10,48,16],[50,10,50,16],[101,22,101,28],[97,22,97,28],[98,22,98,28],[99,22,99,28],[52,10,52,13],[67,4,69,40],[87,4,87,7],[52,14,52,16],[95,4,96,21],[93,4,93,15],[93,16,93,18],[85,4,85,7],[83,4,83,7],[74,4,74,7],[76,4,76,7],[100,33,100,39],[41,34,41,40],[99,33,99,39],[98,33,98,39],[97,29,97,32],[98,4,98,21],[100,4,100,21],[95,22,96,28],[95,29,96,32],[95,33,96,39],[101,29,101,32],[4,46,4,48],[67,42,69,48],[99,29,99,32],[52,28,52,30],[99,4,99,21],[97,4,97,21],[101,33,101,39],[97,33,97,39],[98,29,98,32]]}
[]
[]
[null,null,null,"DANIŞMANLIK İÇİN HİZMET İZNİ"]
[]
[null,null,null,"Bu form ODTÜ Döner Sermaye İşletmesi Müdürlüğü (DÖSİM) üzerinden yapılan danışmanlıklar için gereklidir.",null,null,null,null,null,null,null,null,null,null,null,null,null,null,null,null,null,null,null,null,null,null,null,null,null,null,null,null,null,null,null,null,null,null,null,null,null,null,null,null,null,null,null,null,null,null,null,null,null,null,null,null,null,null,null,null,null,null,"Biyoloji Bölümü","Endüstri Ürünleri Tasarımı Bölümü","Bilgisayar Mühendisliği Bölümü",null,"İktisat Bölümü","Beden Eğitimi ve Spor Bölümü","Deniz Bilimleri Enstitüsü","Fen Edebiyat Fakültesi",{"$f":"MATCH(H17,L_Fakulte,0)","v":3},null,null,null,null,"Prof. Dr.",null,null,"TL",null,{"$f":"Z12=CA9","v":false}]
[null,null,null,"Formu doldururken yaşadığınız sorunları aşağıdaki adrese bildirebilirsiniz.",null,null,null,null,null,null,null,null,null,null,null,null,null,null,null,null,null,null,null,null,null,null,null,null,null,null,null,null,null,null,null,null,null,null,null,null,null,null,null,null,null,null,null,null,null,null,null,null,null,null,null,null,null,null,null,null,null,null,"Felsefe Bölümü","Mimarlık Bölümü","Çevre Mühendisliği Bölümü",null,"İşletme Bölümü","Bilgisayar ve Öğretim Teknolojileri Eğitimi Bölümü","Enformatik Enstitüsü","Mimarlık Fakültesi",null,null,null,null,null,"Doç. Dr.",null,null,"USD",null,{"$f":"IF(Q_PB_Diger,IF(AO12=\"\",\"\",AO12),Z12)","v":"TL"}]
[null,null,null,"abal@metu.edu.tr",null,null,null,null,null,null,null,null,null,null,null,null,null,null,null,null,null,null,null,null,null,null,null,null,null,null,null,null,null,null,null,null,null,null,null,null,null,null,null,null,null,null,null,null,null,null,null,null,null,null,null,null,null,null,null,null,null,null,"Fizik Bölümü","Şehir ve Bölge Planlama Bölümü","Elektrik ve Elektronik Mühendisliği Bölümü",null,"Siyaset Bilimi ve Kamu Yönetimi Bölümü","Eğitim Bilimleri Bölümü","Fen Bilimleri Enstitüsü","Mühendislik Fakültesi",null,null,null,null,null,"Yrd. Doç. Dr.",null,null,"£"]
[null,null,null,null,null,null,null,null,null,null,null,null,null,null,null,null,null,null,null,null,null,null,null,null,null,null,null,null,null,null,null,null,null,null,null,null,null,null,null,null,null,null,null,null,null,null,null,null,null,null,null,null,null,null,null,null,null,null,null,null,null,null,"İstatistik Bölümü",null,"Endüstri Mühendisliği Bölümü",null,"Uluslararası İlişkiler Bölümü","İlköğretim Bölümü","Sosyal Bilimler Enstitüsü","İktisadi ve İdari Bilimler Fakültesi",null,null,null,null,null,"Öğr. Gör.",null,null,"Euro"]
[null,null,null,"Formu doldurmak için gerekli adımlar aşağıda sıralanmıştır. Bilgi girebileceğiniz renklendirilmiş alanlar arasında Tab ve Shift-Tab tuşları ile hareket edebilirsiniz.",null,null,null,null,null,null,null,null,null,null,null,null,null,null,null,null,null,null,null,null,null,null,null,null,null,null,null,null,null,null,null,null,null,null,null,null,null,null,null,null,null,null,null,null,null,null,null,null,null,null,null,null,null,null,null,null,null,null,"Kimya Bölümü",null,"Gıda Mühendisliği Bölümü",null,null,"Ortaöğretim Fen ve Matematik Alanları Eğitimi Bölümü","Uygulamalı Matematik Enstitüsü","Eğitim Fakültesi",null,null,null,null,null,"Okutman",null,null,"Diğer"]
[null,null,null,null,null,null,null,null,null,null,null,null,null,null,null,null,null,null,null,null,null,null,null,null,null,null,null,null,null,null,null,null,null,null,null,null,null,null,null,null,null,null,null,null,null,null,null,null,null,null,null,null,null,null,null,null,null,null,null,null,null,null,"Moleküler Biyoloji ve Genetik Bölümü",null,"Havacılık ve Uzay Mühendisliği Bölümü",null,null,"Yabancı Diller Eğitimi Bölümü","Meslek Yüksekokulu","Diğer (Yüksek Okul, Enstitü, Araştırma Merkezi, vs.)",null,null,null,null,null,"Araş. Gör."]
[null,null,null,null,null,null,null,null,null,null,null,null,null,null,null,null,null,null,null,null,null,null,null,null,null,null,null,null,null,null,null,null,null,null,null,null,null,null,null,null,null,null,null,null,null,null,null,null,null,null,null,null,null,null,null,null,null,null,null,null,null,null,"Matematik Bölümü",null,"İnşaat Mühendisliği Bölümü",null,null,null,"Yabancı Diller Yüksek Okulu",null,null,null,null,null,null,"Öğr. Elemanı"]
[null,null,null,"1.","Danışmanlık için Hizmet İzni formunda kullanılacak para birimini seçiniz:",null,null,null,null,null,null,null,null,null,null,null,null,null,null,null,null,null,null,null,null,"TL",null,null,null,null,null,{"$f":"IF(Q_PB_Diger,\"Diğer para birimini giriniz:\",\"\")","v":""},null,null,null,null,null,null,null,null,null,null,null,null,null,null,null,null,null,null,null,null,null,null,null,null,null,null,null,null,null,null,"Psikoloji Bölümü",null,"Jeoloji Mühendisliği Bölümü",null,null,null,"Sürekli Eğitim Merkezi"]
[null,null,null,null,null,null,null,null,null,null,null,null,null,null,null,null,null,null,null,null,null,null,null,null,null,null,null,null,null,null,null,null,null,null,null,null,null,null,null,null,null,null,null,null,null,null,null,null,null,null,null,null,null,null,null,null,null,null,null,null,null,null,"Sosyoloji Bölümü",null,"Kimya Mühendisliği Bölümü",null,null,null,"Rektörlük",null,null,null,null,null,null,null,null,null,"Ar-Ge"]
[null,null,null,null,null,null,null,null,null,null,null,null,null,null,null,null,null,null,null,null,null,null,null,null,null,null,null,null,null,null,null,null,null,null,null,null,null,null,null,null,null,null,null,null,null,null,null,null,null,null,null,null,null,null,null,null,null,null,null,null,null,null,"Tarih Bölümü",null,"Maden Mühendisliği Bölümü",null,null,null,"Müzik ve Güzel Sanatlar Bölümü",null,null,null,null,null,null,null,null,null,"Ar-Ge Değil"]
[null,null,null,"2.","Danışmanlığın yapılacağı birimi seçiniz:",null,null,null,null,null,null,null,null,null,null,null,null,null,null,null,null,null,null,null,null,null,null,null,null,null,null,null,null,null,null,null,null,null,null,null,null,null,null,null,null,null,null,null,null,null,null,null,null,null,null,null,null,null,null,null,null,null,null,null,"Makine Mühendisliği Bölümü",null,null,null,"Türk Dili Bölümü"]
[null,null,null,null,null,null,null,null,null,null,null,null,null,null,null,null,null,null,null,null,null,null,null,null,null,null,null,null,null,null,null,null,null,null,null,null,null,null,null,null,null,null,null,null,null,null,null,null,null,null,null,null,null,null,null,null,null,null,null,null,null,null,null,null,"Metalurji ve Malzeme Mühendisliği Bölümü",null,null,null,"Bilgi İşlem Daire Başkanlığı",null,null,null,null,null,null,null,null,null,"Kamu"]
[null,null,null,null,"Fakülte:",null,null,"Mühendislik Fakültesi",null,null,null,null,null,null,null,null,null,null,null,null,null,null,null,null,null,null,null,null,null,null,null,null,null,null,null,null,null,null,null,null,null,null,null,null,null,null,null,null,null,null,null,null,null,null,null,null,null,null,null,null,null,null,null,null,"Mühendislik Bilimleri Bölümü",null,null,null,"Sağlık, Kültür ve Spor Daire Başkanlığı",null,null,null,null,null,null,null,null,null,"Özel Sektör"]
[null,null,null,null,null,null,null,null,null,null,null,null,null,null,null,null,null,null,null,null,null,null,null,null,null,null,null,null,null,null,null,null,null,null,null,null,null,null,null,null,null,null,null,null,null,null,null,null,null,null,null,null,null,null,null,null,null,null,null,null,null,null,null,null,"Petrol ve Doğalgaz Mühendisliği Bölümü",null,null,null,"Afet Yönetimi Uygulama ve Araştırma Merkezi (AFET)",null,null,null,null,null,null,null,null,null,"STK (Sivil Toplum Kuruluşu)"]
[null,null,null,null,"Bölüm:",null,null,null,null,null,null,null,null,null,null,null,null,null,null,null,null,null,null,null,null,null,null,null,null,null,null,null,null,null,null,null,null,null,null,null,null,null,null,null,null,null,null,null,null,null,null,null,null,null,null,null,null,null,null,null,null,null,null,null,null,null,null,null,"ODTÜ BİLTİR Merkezi",null,null,null,null,null,null,null,null,null,"Şahıs"]
[null,null,null,null,null,null,null,null,null,null,null,null,null,null,null,null,null,null,null,null,null,null,null,null,null,null,null,null,null,null,null,null,null,null,null,null,null,null,null,null,null,null,null,null,null,null,null,null,null,null,null,null,null,null,null,null,null,null,null,null,null,null,null,null,null,null,null,null,"Biyomalzeme ve Doku Mühendisliği Uygulama ve Araştırma Merkezi (BIOMATEN)",null,null,null,null,null,null,null,null,null,"Diğer"]
[null,null,null,null,null,null,null,null,null,null,null,null,null,null,null,null,null,null,null,null,null,null,null,null,null,null,null,null,null,null,null,null,null,null,null,null,null,null,null,null,null,null,null,null,null,null,null,null,null,null,null,null,null,null,null,null,null,null,null,null,null,null,null,null,null,null,null,null,"Bilim ve Teknoloji Politikaları Araştırma Merkezi (TEKPOL)"]
[null,null,null,"3.","Danışmanlık kodunu giriniz:",null,null,null,null,null,null,null,null,null,null,null,null,null,null,null,null,null,null,null,null,null,null,null,null,null,null,null,null,null,null,null,null,null,null,null,null,null,null,null,null,null,null,null,null,null,null,null,null,null,null,null,null,null,null,null,null,null,"Deniz Bilimleri Enstitüsü","Enstitü Müdürü",null,null,null,null,"E-Devlet Araştırma ve Uygulama Merkezi (EDMER)",null,null,null,null,null,null,null,null,null,0.18]
[null,null,null,null,null,null,null,null,null,null,null,null,null,null,null,null,null,null,null,null,null,null,null,null,null,null,null,null,null,null,null,null,null,null,null,null,null,null,null,null,null,null,null,null,null,null,null,null,null,null,null,null,null,null,null,null,null,null,null,null,null,null,"Enformatik Enstitüsü","Enstitü Müdürü",null,null,null,null,"Girişimcilik Araştırma ve Uygulama Merkezi (GİMER)",null,null,null,null,null,null,null,null,null,0.08]
[null,null,null,null,null,null,null,null,null,null,null,null,null,null,null,null,null,null,null,null,null,null,null,null,null,null,null,null,null,null,null,null,null,null,null,null,null,null,null,null,null,null,null,null,null,null,null,null,null,null,null,null,null,null,null,null,null,null,null,null,null,null,"Fen Bilimleri Enstitüsü","Enstitü Müdürü",null,null,null,null,"Görsel-İşitsel Sistemler Araştırma ve Üretim Merkezi (GİSAM)",null,null,null,null,null,null,null,null,null,"Muaf"]
[null,null,null,"4.","Danışman öğretim üyesinin bilgilerini giriniz:",null,null,null,null,null,null,null,null,null,null,null,null,null,null,null,null,null,null,null,null,null,null,null,null,null,null,null,null,null,null,null,null,null,null,null,null,null,null,null,null,null,null,null,null,null,null,null,null,null,null,null,null,null,null,null,null,null,"Sosyal Bilimler Enstitüsü","Enstitü Müdürü",null,null,null,null,"Görüntü Analizi Uygulama ve Araştırma Merkezi (OGAM)"]
[null,null,null,null,null,null,null,null,null,null,null,null,null,null,null,null,null,null,null,null,null,null,null,null,null,null,null,null,null,null,null,null,null,null,null,null,null,null,null,null,null,null,null,null,null,null,null,null,null,null,null,null,null,null,null,null,null,null,null,null,null,null,"Uygulamalı Matematik Enstitüsü","Enstitü Müdürü",null,null,null,null,"Güneş Enerjisi Uygulama ve Araştırma Merkezi (GÜNAM)"]
[null,null,null,null,"Ünvanı:",null,null,null,null,null,null,null,null,null,null,null,null,null,null,null,null,null,null,null,null,null,null,null,null,null,null,null,null,null,null,null,null,null,null,null,null,null,null,null,null,null,null,null,null,null,null,null,null,null,null,null,null,null,null,null,null,null,"Meslek Yüksekokulu","Meslek Yüksekokulu Müdürü",null,null,null,null,"İnsan Hakları ve Güvenliği Uluslararası Araştırma ve Uygulama Merkezi"]
[null,null,null,null,null,null,null,null,null,null,null,null,null,null,null,null,null,null,null,null,null,null,null,null,null,null,null,null,null,null,null,null,null,null,null,null,null,null,null,null,null,null,null,null,null,null,null,null,null,null,null,null,null,null,null,null,null,null,null,null,null,null,"Yabancı Diller Yüksek Okulu","Yabancı Diller Yüksek Okulu Müdürü",null,null,null,null,"İnşaat Sektörü Eğitim Araştırma Merkezi (ISEM)"]
[null,null,null,null,"Adı:",null,null,null,null,null,null,null,null,null,null,null,null,null,null,null,null,null,null,null,null,null,null,null,null,null,null,null,null,null,null,null,null,null,null,null,null,null,null,null,null,null,null,null,null,null,null,null,null,null,null,null,null,null,null,null,null,null,"Sürekli Eğitim Merkezi","Sürekli Eğitim Merkezi Müdürü",null,null,null,null,"Karadeniz ve Orta Asya Ülkeleri Araştırma Merkezi (KORA)",null,null,null,null,null,null,null,null,"Saat"]
[null,null,null,null,null,null,null,null,null,null,null,null,null,null,null,null,null,null,null,null,null,null,null,null,null,null,null,null,null,null,null,null,null,null,null,null,null,null,null,null,null,null,null,null,null,null,null,null,null,null,null,null,null,null,null,null,null,null,null,null,null,null,"Rektörlük","Rektör",null,null,null,null,"Kaynak Teknolojisi ve Tahribatsiz Muayene Araştırma Merkezi (KAYNAK)",null,null,null,null,null,null,null,null,"Gün"]
[null,null,null,null,"Soyadı:",null,null,null,null,null,null,null,null,null,null,null,null,null,null,null,null,null,null,null,null,null,null,null,null,null,null,null,null,null,null,null,null,null,null,null,null,null,null,null,null,null,null,null,null,null,null,null,null,null,null,null,null,null,null,null,null,null,"Müzik ve Güzel Sanatlar Bölümü","Bölüm Başkanı",null,null,null,null,"Konfüçyus Uygulama ve Araştırma Merkezi",null,null,null,null,null,null,null,null,"Ay"]
[null,null,null,null,null,null,null,null,null,null,null,null,null,null,null,null,null,null,null,null,null,null,null,null,null,null,null,null,null,null,null,null,null,null,null,null,null,null,null,null,null,null,null,null,null,null,null,null,null,null,null,null,null,null,null,null,null,null,null,null,null,null,"Türk Dili Bölümü","Bölüm Başkanı",null,null,null,null,"Merkez Laboratuvarı",null,null,null,null,null,null,null,null,"Yıl"]
[null,null,null,null,null,null,null,null,null,null,null,null,null,null,null,null,null,null,null,null,null,null,null,null,null,null,null,null,null,null,null,null,null,null,null,null,null,null,null,null,null,null,null,null,null,null,null,null,null,null,null,null,null,null,null,null,null,null,null,null,null,null,"Bilgi İşlem Daire Başkanlığı","Daire Başkanı",null,null,null,null,"AR-GE Eğitim ve Ölçme Merkezi"]
[null,null,null,"5.","Danışmanlık hizmeti alacak kuruluşla ilgili bilgileri giriniz:",null,null,null,null,null,null,null,null,null,null,null,null,null,null,null,null,null,null,null,null,null,null,null,null,null,null,null,null,null,null,null,null,null,null,null,null,null,null,null,null,null,null,null,null,null,null,null,null,null,null,null,null,null,null,null,null,null,"Sağlık, Kültür ve Spor Daire Başkanlığı","Daire Başkanı",null,null,null,null,"Moleküler Biyoloji ve Biyoteknoloji AR-GE Merkezi"]
[null,null,null,null,null,null,null,null,null,null,null,null,null,null,null,null,null,null,null,null,null,null,null,null,null,null,null,null,null,null,null,null,null,null,null,null,null,null,null,null,null,null,null,null,null,null,null,null,null,null,null,null,null,null,null,null,null,null,null,null,null,null,"Afet Yönetimi Uygulama ve Araştırma Merkezi (AFET)","Merkez Başkanı",null,null,null,null,"ODTÜ GAP Araştırma Merkezi (GAP)"]
[null,null,null,null,"Kuruluş adı:",null,null,null,null,null,null,null,null,null,null,null,null,null,null,null,null,null,null,null,null,null,null,null,null,null,null,null,null,null,null,null,null,null,null,null,null,null,null,null,null,null,null,null,null,null,null,null,null,null,null,null,null,null,null,null,null,null,"ODTÜ BİLTİR Merkezi","Merkez Başkanı",null,null,null,null,"Mikro-Elektro-Mekanik Sistemler Araştırma ve Uygulama Merkezi (ODTÜ-MEMS)"]
[null,null,null,null,null,null,null,null,null,null,null,null,null,null,null,null,null,null,null,null,null,null,null,null,null,null,null,null,null,null,null,null,null,null,null,null,null,null,null,null,null,null,null,null,null,null,null,null,null,null,null,null,null,null,null,null,null,null,null,null,null,null,"Biyomalzeme ve Doku Mühendisliği Uygulama ve Araştırma Merkezi (BIOMATEN)","Merkez Başkanı",null,null,null,null,"ODTÜ - PIGM Petrol Araştırma Merkezi (PAL)"]
[null,null,null,null,"Adresi:",null,null,null,null,null,null,null,null,null,null,null,null,null,null,null,null,null,null,null,null,null,null,null,null,null,null,null,null,null,null,null,null,null,null,null,null,null,null,null,null,null,null,null,null,null,null,null,null,null,null,null,null,null,null,null,null,null,"Bilim ve Teknoloji Politikaları Araştırma Merkezi (TEKPOL)","Merkez Başkanı",null,null,null,null,"ODTÜ - TSK Modelleme ve Simülasyon Merkezi (MODSIM)"]
[null,null,null,null,null,null,null,null,null,null,null,null,null,null,null,null,null,null,null,null,null,null,null,null,null,null,null,null,null,null,null,null,null,null,null,null,null,null,null,null,null,null,null,null,null,null,null,null,null,null,null,null,null,null,null,null,null,null,null,null,null,null,"E-Devlet Araştırma ve Uygulama Merkezi (EDMER)","Merkez Başkanı",null,null,null,null,"Rüzgar Enerjisi Teknolojileri Uygulama ve Araştırma Merkezi (RÜZGEM)"]
[null,null,null,null,"Telefon 1:",null,null,null,null,null,null,null,null,null,null,null,null,null,null,null,null,null,null,null,null,null,null,null,null,"Vergi Dairesi:",null,null,null,null,null,null,null,null,null,null,null,null,null,null,null,null,null,null,null,null,null,null,null,null,null,null,null,null,null,null,null,null,"Girişimcilik Araştırma ve Uygulama Merkezi (GİMER)","Merkez Başkanı",null,null,null,null,"Tarihsel Çevre Değerlerini Araştırma ve Uygulama Merkezi (TAÇDAM)"]
[null,null,null,null,null,null,null,null,null,null,null,null,null,null,null,null,null,null,null,null,null,null,null,null,null,null,null,null,null,null,null,null,null,null,null,null,null,null,null,null,null,null,null,null,null,null,null,null,null,null,null,null,null,null,null,null,null,null,null,null,null,null,"Görsel-İşitsel Sistemler Araştırma ve Üretim Merkezi (GİSAM)","Merkez Başkanı",null,null,null,null,"Toplum Bilim Uygulama ve Araştırma Merkezi (TBM)"]
[null,null,null,null,"Telefon 2:",null,null,null,null,null,null,null,null,null,null,null,null,null,null,null,null,null,null,null,null,null,null,null,null,"Vergi Numarası:",null,null,null,null,null,null,null,null,null,null,null,null,null,null,null,null,null,null,null,null,null,null,null,null,null,null,null,null,null,null,null,null,"Görüntü Analizi Uygulama ve Araştırma Merkezi (OGAM)","Merkez Başkanı",null,null,null,null,"Uygulamalı Etik Araştırma Merkezi (UEAM)"]
[null,null,null,null,null,null,null,null,null,null,null,null,null,null,null,null,null,null,null,null,null,null,null,null,null,null,null,null,null,null,null,null,null,null,null,null,null,null,null,null,null,null,null,null,null,null,null,null,null,null,null,null,null,null,null,null,null,null,null,null,null,null,"Güneş Enerjisi Uygulama ve Araştırma Merkezi (GÜNAM)","Merkez Başkanı",null,null,null,null,"Yapılı Çevre ve Tasarım Uygulama ve Araştırma Merkezi (YTM-MATPUM)"]
[null,null,null,null,"Kuruluş tipi:",null,null,null,null,null,null,null,null,null,null,null,null,null,null,null,null,null,null,null,null,null,null,null,null,null,null,null,null,null,null,null,null,null,null,null,null,null,null,null,null,null,null,null,null,null,null,null,null,null,null,null,null,null,null,null,null,null,"İnsan Hakları ve Güvenliği Uluslararası Araştırma ve Uygulama Merkezi","Merkez Başkanı"]
[null,null,null,null,null,null,null,null,null,null,null,null,null,null,null,null,null,null,null,null,null,null,null,null,null,null,null,null,null,null,null,null,null,null,null,null,null,null,null,null,null,null,null,null,null,null,null,null,null,null,null,null,null,null,null,null,null,null,null,null,null,null,"İnşaat Sektörü Eğitim Araştırma Merkezi (ISEM)","Merkez Başkanı"]
[null,null,null,null,null,null,null,null,null,null,null,null,null,null,null,null,null,null,null,null,null,null,null,null,null,null,null,null,null,null,null,null,null,null,null,null,null,null,null,null,null,null,null,null,null,null,null,null,null,null,null,null,null,null,null,null,null,null,null,null,null,null,"Karadeniz ve Orta Asya Ülkeleri Araştırma Merkezi (KORA)","Merkez Başkanı"]
[null,null,null,"6.","Danışmanlığın başlangıç ve bitiş tarihleri ile süresini giriniz:",null,null,null,null,null,null,null,null,null,null,null,null,null,null,null,null,null,null,null,null,null,null,null,null,null,null,null,null,null,null,null,null,null,null,null,null,null,null,null,null,null,null,null,null,null,null,null,null,null,null,null,null,null,null,null,null,null,"Kaynak Teknolojisi ve Tahribatsiz Muayene Araştırma Merkezi (KAYNAK)","Merkez Başkanı"]
[null,null,null,null,null,null,null,null,null,null,null,null,null,null,null,null,null,null,null,null,null,null,null,null,null,null,null,null,null,null,null,null,null,null,null,null,null,null,null,null,null,null,null,null,null,null,null,null,null,null,null,null,null,null,null,null,null,null,null,null,null,null,"Konfüçyus Uygulama ve Araştırma Merkezi","Merkez Başkanı"]
[null,null,null,null,"Başlangıç Tarihi:",null,null,null,null,null,null,null,null,null,null,null,null,null,null,null,null,null,null,null,null,null,null,null,null,null,null,null,null,null,null,null,null,null,null,null,null,null,null,null,null,null,null,null,null,null,null,null,null,null,null,null,null,null,null,null,null,null,"Merkez Laboratuvarı","Merkez Laboratuvar Müdürü"]
[null,null,null,null,null,null,null,null,null,null,null,null,null,null,null,null,null,null,null,null,null,null,null,null,null,null,null,null,null,null,null,null,null,null,null,null,null,null,null,null,null,null,null,null,null,null,null,null,null,null,null,null,null,null,null,null,null,null,null,null,null,null,"AR-GE Eğitim ve Ölçme Merkezi","Merkez Başkanı"]
[null,null,null,null,"Bitiş Tarihi:",null,null,null,null,null,null,null,null,null,null,null,null,null,null,null,null,null,null,null,null,null,null,null,null,null,null,null,null,null,null,null,null,null,null,null,null,null,null,null,null,null,null,null,null,null,null,null,null,null,null,null,null,null,null,null,null,null,"Moleküler Biyoloji ve Biyoteknoloji AR-GE Merkezi","Merkez Başkanı"]
[null,null,null,null,null,null,null,null,null,null,null,null,null,null,null,null,null,null,null,null,null,null,null,null,null,null,null,null,null,null,null,null,null,null,null,null,null,null,null,null,null,null,null,null,null,null,null,null,null,null,null,null,null,null,null,null,null,null,null,null,null,null,"ODTÜ GAP Araştırma Merkezi (GAP)","Merkez Başkanı"]
[null,null,null,null,"Süresi:",null,null,null,null,null,null,null,null,null,null,null,null,null,null,"Bir ayda çalışılacak gün sayısı:",null,null,null,null,null,null,null,null,null,null,null,"  (En fazla 5 gün olabilir.)",null,null,null,null,null,null,null,null,null,null,null,null,null,null,null,null,null,null,null,null,null,null,null,null,null,null,null,null,null,null,"Mikro-Elektro-Mekanik Sistemler Araştırma ve Uygulama Merkezi (ODTÜ-MEMS)","Merkez Başkanı"]
[null,null,null,null,null,null,null,null,null,null,null,null,null,null,null,null,null,null,null,null,null,null,null,null,null,null,null,null,null,null,null,null,null,null,null,null,null,null,null,null,null,null,null,null,null,null,null,null,null,null,null,null,null,null,null,null,null,null,null,null,null,null,"ODTÜ - PIGM Petrol Araştırma Merkezi (PAL)","Merkez Başkanı"]
[null,null,null,null,null,null,null,null,null,null,null,null,null,null,null,null,null,null,null,null,null,null,null,null,null,null,null,null,null,null,null,null,null,null,null,null,null,null,null,null,null,null,null,null,null,null,null,null,null,null,null,null,null,null,null,null,null,null,null,null,null,null,"ODTÜ - TSK Modelleme ve Simülasyon Merkezi (MODSIM)","Merkez Başkanı"]
[null,null,null,"7.","Danışmanlığın konusunu yazınız:",null,null,null,null,null,null,null,null,null,null,null,null,null,null,null,null,null,null,null,null,null,null,null,null,null,null,null,null,null,null,null,null,null,null,null,null,null,null,null,null,null,null,null,null,null,null,null,null,null,null,null,null,null,null,null,null,null,"Rüzgar Enerjisi Teknolojileri Uygulama ve Araştırma Merkezi (RÜZGEM)","Merkez Başkanı"]
[null,null,null,null,null,null,null,null,null,null,null,null,null,null,null,null,null,null,null,null,null,null,null,null,null,null,null,null,null,null,null,null,null,null,null,null,null,null,null,null,null,null,null,null,null,null,null,null,null,null,null,null,null,null,null,null,null,null,null,null,null,null,"Tarihsel Çevre Değerlerini Araştırma ve Uygulama Merkezi (TAÇDAM)","Merkez Başkanı"]
[null,null,null,null,null,null,null,null,null,null,null,null,null,null,null,null,null,null,null,null,null,null,null,null,null,null,null,null,null,null,null,null,null,null,null,null,null,null,null,null,null,null,null,null,null,null,null,null,null,null,null,null,null,null,null,null,null,null,null,null,null,null,"Toplum Bilim Uygulama ve Araştırma Merkezi (TBM)","Merkez Başkanı"]
[null,null,null,null,null,null,null,null,null,null,null,null,null,null,null,null,null,null,null,null,null,null,null,null,null,null,null,null,null,null,null,null,null,null,null,null,null,null,null,null,null,null,null,null,null,null,null,null,null,null,null,null,null,null,null,null,null,null,null,null,null,null,"Uygulamalı Etik Araştırma Merkezi (UEAM)","Merkez Başkanı"]
[null,null,null,null,null,null,null,null,null,null,null,null,null,null,null,null,null,null,null,null,null,null,null,null,null,null,null,null,null,null,null,null,null,null,null,null,null,null,null,null,null,null,null,null,null,null,null,null,null,null,null,null,null,null,null,null,null,null,null,null,null,null,"Yapılı Çevre ve Tasarım Uygulama ve Araştırma Merkezi (YTM-MATPUM)","Merkez Başkanı"]
[null,null,null,"8.","Danışmanlığın Ar-Ge içeriği olup olmadığını belirtiniz:"]
[]
[]
[]
[]
[null,null,null,"9.","Danışmanlığın özetini yazınız:"]
[]
[null,null,null,null,null,null,null,null,null,null,null,null,null,null,null,null,null,null,null,null,null,null,null,null,null,null,null,null,null,null,null,null,null,null,null,null,null,null,null,null,null,null,{"$f":"IF(LEN(ProjeOzeti)>390,\"Lütfen proje özetini forma sığabilmesi için kısaltınız.\",\"\")","v":""}]
[]
[]
[]
[]
[null,null,null,"10.",{"$f":"IF(ISERROR(IF(BS5<6,\"Danışmanlığı onaylayacak fakülte dekanının\",VLOOKUP(H19,BK22:BL60,2,0))&\" (veya yerine vekalet eden kişinin) bilgilerini giriniz:\"),\"Lütfen 2. maddeyi kontrol ediniz, fakülte ve bölüm uyuşmuyor.\",IF(BS5<6,\"Danışmanlığı onaylayacak fakülte dekanının\",VLOOKUP(H19,BK22:BL60,2,0))&\" (veya yerine vekalet eden kişinin) bilgilerini giriniz:\")","v":"Danışmanlığı onaylayacak fakülte dekanının (veya yerine vekalet eden kişinin) bilgilerini giriniz:"}]
[]
[null,null,null,null,"Ünvanı:"]
[]
[null,null,null,null,"Adı:"]
[]
[null,null,null,null,"Soyadı:"]
[]
[]
[null,null,null,"11.",{"$f":"IF(BS5<6,\"Danışmanlığı onaylayacak bölüm başkanının (veya dengi birim yöneticisinin) bilgilerini giriniz:\",\"Bu adımı atlayınız.\")","v":"Danışmanlığı onaylayacak bölüm başkanının (veya dengi birim yöneticisinin) bilgilerini giriniz:"}]
[]
[null,null,null,null,{"$f":"IF(E82=\"Bu adımı atlayınız.\",\"\",\"Ünvanı:\")","v":"Ünvanı:"}]
[]
[null,null,null,null,{"$f":"IF(E82=\"Bu adımı atlayınız.\",\"\",\"Adı:\")","v":"Adı:"}]
[]
[null,null,null,null,{"$f":"IF(E82=\"Bu adımı atlayınız.\",\"\",\"Soyadı:\")","v":"Soyadı:"}]
[]
[]
[null,null,null,"12.","Danışmanlık maliyet tablosunu doldurunuz:"]
[null,null,null,null,"(Maliyet tablosunu doldurmak için 3521 numaralı telefonu arayarak Avni Bal'dan yardım alabilirsiniz.)"]
[]
[null,null,null,null,"Danışmanlık için K.D.V. oranını seçiniz:",null,null,null,null,null,null,null,null,null,null,null,0.18]
[]
[null,null,null,null," ÖDENECEK ÜCRET",null,null,null,null,null,null,null,null,null,null,null,null,null,null,null,null,null,{"$f":"\"Brüt Ücret (\"&ParaBirimi&\"/Ay)\"","v":"Brüt Ücret (TL/Ay)"},null,null,null,null,null,null,"Süre (Ay)",null,null,null,{"$f":"\"Maliyet (\"&ParaBirimi&\")\"","v":"Maliyet (TL)"}]
[]
[null,null,null,null," Öğretim üyesi (%64)",null,null,null,null,null,null,null,null,null,null,null,null,null,null,null,null,null,1000,null,null,null,null,null,null,6,null,null,null,{"$f":"W98*AD98","v":6000}]
[null,null,null,null," Üniversite payı (%36)",null,null,null,null,null,null,null,null,null,null,null,null,null,null,null,null,null,null,null,null,null,null,null,null,null,null,null,null,{"$f":"AH100*0.36","v":3375}]
[null,null,null,null,"TOPLAM DANIŞMANLIK MALİYETİ (K.D.V. HARİÇ)    ",null,null,null,null,null,null,null,null,null,null,null,null,null,null,null,null,null,null,null,null,null,null,null,null,null,null,null,null,{"$f":"AH98/0.64","v":9375}]
[null,null,null,null,"K.D.V. (genellikle SEM ve YDYO için %8, diğerleri için %18)    ",null,null,null,null,null,null,null,null,null,null,null,null,null,null,null,null,null,null,null,null,null,null,null,null,null,null,null,null,{"$f":"IF(KDV=\"Muaf\",\"Muaf\",AH100*KDV)","v":1687.5}]
[null,null,null,null,"TOPLAM DANIŞMANLIK MALİYETİ (K.D.V. DAHİL)    ",null,null,null,null,null,null,null,null,null,null,null,null,null,null,null,null,null,null,null,null,null,null,null,null,null,null,null,null,{"$f":"IF(KDV=\"Muaf\",AH100,AH100+AH101)","v":11062.5}]
[]
[]
[null,null,null,"►","Bilgilerini girdiğiniz Danışmanlık için Hizmet İzni formunu almak için \"Form\" sayfasını yazdırınız."]

{"sheet":"Form","index":1,"n_rows":49,"n_cols":71,"rows_kept":49,"cut":false,"hidden":false,"merged":[[43,2,43,15],[35,22,35,28],[37,22,37,28],[33,10,33,15],[33,17,33,20],[18,23,19,31],[34,22,34,28],[26,2,30,31],[31,12,31,16],[18,3,19,11],[48,2,48,19],[47,2,47,19],[45,2,46,19],[44,2,44,19],[44,23,45,31],[32,17,32,20],[43,23,43,31],[32,22,32,28],[33,22,33,28],[32,10,32,15],[38,2,42,31],[36,2,36,8],[36,22,36,28],[31,21,31,25],[31,29,31,31],[18,13,19,21],[2,6,4,29],[6,1,6,32],[8,2,8,20],[8,25,8,30],[16,13,17,21],[16,3,17,11],[9,25,9,30],[16,23,17,31],[11,2,15,31]]}
[]
[]
[null,null,null,null,null,null,"T.C. ORTA DOĞU TEKNİK ÜNİVERSİTESİ\nDÖNER SERMAYE İŞLETMESİ"]
[]
[null,null,null,null,null,null,null,null,null,null,null,null,null,null,null,null,null,null,null,null,null,null,null,null,null,null,null,null,null,null,null,null,null,null,null,null,null,null,null,null,null,null,null,null,null,null,null,null,null,null,null,null,null,null,null,null,null,null,null,null,null,null,null,null,null,null,null,null,null,null,{"$f":"\"TR 1700 0100 1537 0898 0700 5001\"","v":"TR 1700 0100 1537 0898 0700 5001"}]
[]
[null,"DANIŞMANLIK İÇİN HİZMET İZNİ"]
[]
[null,null,{"$f":"\"Danışmanlık Kodu: \"&IF(ProjeKodu=\"\",\"\",ProjeKodu)","v":"Danışmanlık Kodu: "},null,null,null,null,null,null,null,null,null,null,null,null,null,null,null,null,null,null,null,"Tarih:",null,null,{"$f":"TODAY()","v":"2018-09-19"}]
[null,null,null,null,null,null,null,null,null,null,null,null,null,null,null,null,null,null,null,null,null,null,"Sayı:"]
[]
[null,null,{"$f":"\"Orta Doğu Teknik Üniversitesi \"&IF('Danışmanlık Bilgileri'!BS5<6,Fakulte,\"\")&IF('Danışmanlık Bilgileri'!BS5<6,\" \",\"\")&Bolum&\" öğretim üyelerinden \"&IF(PY1_Unvan=\"\",\"\",PY1_Unvan)&\" \"&IF(PY1_Ad=\"\",\"\",PROPER(PY1_Ad))&\" \"&IF(PY1_Soyad=\"\",\"\",UPPER(PY1_Soyad))&\"'e, 2547 sayılı kanunun 36, 37 ve 58. maddelerine istinaden\"&\" ODTÜ'deki bütün akademik ve idari görevlerini yerine getirmek kaydı ile\"&\" aşağıdaki koşullarla danışmanlık hizmeti vermek üzere ayda \"&'Danışmanlık Bilgileri'!AC53&\" gün izin verilmesi uygun görülmüştür.\"","v":"Orta Doğu Teknik Üniversitesi Mühendislik Fakültesi  öğretim üyelerinden   'e, 2547 sayılı kanunun 36, 37 ve 58. maddelerine istinaden ODTÜ'deki bütün akademik ve idari görevlerini yerine getirmek kaydı ile aşağıdaki koşullarla danışmanlık hizmeti vermek üzere ayda  gün izin verilmesi uygun görülmüştür."}]
[]
[]
[]
[]
[null,null,null,{"$f":"IF('Danışmanlık Bilgileri'!BS5<6,\"Bölüm Başkanı\",\"\")","v":"Bölüm Başkanı"},null,null,null,null,null,null,null,null,null,{"$f":"IF('Danışmanlık Bilgileri'!BS5<6,\"Fakülte Dekanı\",VLOOKUP('Danışmanlık Bilgileri'!H19,'Danışmanlık Bilgileri'!BK22:BL60,2,0))","v":"Fakülte Dekanı"},null,null,null,null,null,null,null,null,null,"Rektör Yardımcısı"]
[]
[null,null,null,{"$f":"IF('Danışmanlık Bilgileri'!BS5<6,IF(OR(O2_Unvan=\"\",O2_Ad=\"\"),\"\",O2_Unvan)&\" \"&IF(O2_Ad=\"\",\"\",PROPER(O2_Ad))&\" \"&IF(O2_Soyad=\"\",\"\",UPPER(O2_Soyad)),\"\")","v":"  "},null,null,null,null,null,null,null,null,null,{"$f":"IF(OR(O1_Unvan=\"\",O1_Ad=\"\"),\"\",O1_Unvan)&\" \"&IF(O1_Ad=\"\",\"\",PROPER(O1_Ad))&\" \"&IF(O1_Soyad=\"\",\"\",UPPER(O1_Soyad))","v":"  "},null,null,null,null,null,null,null,null,null,"Prof. Dr. Mehmet T. ZEYREK"]
[]
[]
[]
[null,null,{"$f":"\"Danışmanlık Konusu: \"&IF(ProjeAdi=\"\",\"\",ProjeAdi)","v":"Danışmanlık Konusu: "}]
[null,null,{"$f":"\"Danışmanlık Hizmeti Alacak Kuruluş: \"&IF(TedAdi=\"\",\"\",TedAdi)","v":"Danışmanlık Hizmeti Alacak Kuruluş: "}]
[null,null,{"$f":"IF(KurulusTipi=\"Kamu\",\"þ\",\"o\")","v":"o"}," Kamu",null,null,null,{"$f":"IF(KurulusTipi=\"Özel Sektör\",\"þ\",\"o\")","v":"o"}," Özel Sektör",null,null,null,null,null,{"$f":"IF(KurulusTipi=\"STK (Sivil Toplum Kuruluşu)\",\"þ\",\"o\")","v":"o"}," STK",null,null,null,{"$f":"IF(KurulusTipi=\"Şahıs\",\"þ\",\"o\")","v":"o"}," Şahıs",null,null,null,{"$f":"IF(KurulusTipi=\"Diğer\",\"þ\",\"o\")","v":"o"}," Diğer"]
[null,null,{"$f":"IF(ArGe=\"Ar-Ge\",\"þ\",\"o\")","v":"o"}," Ar-Ge",null,null,null,{"$f":"IF(ArGe=\"Ar-Ge Değil\",\"þ\",\"o\")","v":"o"}," Ar-Ge Değil"]
[null,null,{"$f":"\"Danışmanlık Hizmetinin Özeti: \"&IF(ProjeOzeti=\"\",\"\",ProjeOzeti)","v":"Danışmanlık Hizmetinin Özeti: "},{"$f":"\"Proje Başlığı: \"&IF(ProjeAdi=\"\",\"\",ProjeAdi)","v":"Proje Başlığı: "},"Proje Başlığı: ","Proje Başlığı: ","Proje Başlığı: ","Proje Başlığı: ","Proje Başlığı: ","Proje Başlığı: ","Proje Başlığı: ","Proje Başlığı: ","Proje Başlığı: ",{"$f":"\"Proje Başlığı: \"&IF(ProjeAdi=\"\",\"\",ProjeAdi)","v":"Proje Başlığı: "},"Proje Başlığı: ","Proje Başlığı: ","Proje Başlığı: ","Proje Başlığı: ","Proje Başlığı: ","Proje Başlığı: ","Proje Başlığı: ","Proje Başlığı: ","Proje Başlığı: ",{"$f":"\"Proje Başlığı: \"&IF(ProjeAdi=\"\",\"\",ProjeAdi)","v":"Proje Başlığı: "},"Proje Başlığı: ","Proje Başlığı: ","Proje Başlığı: ","Proje Başlığı: ","Proje Başlığı: ","Proje Başlığı: ","Proje Başlığı: ","Proje Başlığı: "]
[null,null,{"$f":"\"Proje Başlığı: \"&IF(ProjeAdi=\"\",\"\",ProjeAdi)","v":"Proje Başlığı: "},"Proje Başlığı: ","Proje Başlığı: ","Proje Başlığı: ","Proje Başlığı: ","Proje Başlığı: ","Proje Başlığı: ","Proje Başlığı: ","Proje Başlığı: ","Proje Başlığı: ","Proje Başlığı: ","Proje Başlığı: ","Proje Başlığı: ","Proje Başlığı: ","Proje Başlığı: ","Proje Başlığı: ","Proje Başlığı: ","Proje Başlığı: ","Proje Başlığı: ","Proje Başlığı: ","Proje Başlığı: ","Proje Başlığı: ","Proje Başlığı: ","Proje Başlığı: ","Proje Başlığı: ","Proje Başlığı: ","Proje Başlığı: ","Proje Başlığı: ","Proje Başlığı: ","Proje Başlığı: "]
[null,null,{"$f":"\"Proje Başlığı: \"&IF(ProjeAdi=\"\",\"\",ProjeAdi)","v":"Proje Başlığı: "},"Proje Başlığı: ","Proje Başlığı: ","Proje Başlığı: ","Proje Başlığı: ","Proje Başlığı: ","Proje Başlığı: ","Proje Başlığı: ","Proje Başlığı: ","Proje Başlığı: ","Proje Başlığı: ","Proje Başlığı: ","Proje Başlığı: ","Proje Başlığı: ","Proje Başlığı: ","Proje Başlığı: ","Proje Başlığı: ","Proje Başlığı: ","Proje Başlığı: ","Proje Başlığı: ","Proje Başlığı: ","Proje Başlığı: ","Proje Başlığı: ","Proje Başlığı: ","Proje Başlığı: ","Proje Başlığı: ","Proje Başlığı: ","Proje Başlığı: ","Proje Başlığı: ","Proje Başlığı: "]
[null,null,{"$f":"\"Proje Başlığı: \"&IF(ProjeAdi=\"\",\"\",ProjeAdi)","v":"Proje Başlığı: "},"Proje Başlığı: ","Proje Başlığı: ","Proje Başlığı: ","Proje Başlığı: ","Proje Başlığı: ","Proje Başlığı: ","Proje Başlığı: ","Proje Başlığı: ","Proje Başlığı: ","Proje Başlığı: ","Proje Başlığı: ","Proje Başlığı: ","Proje Başlığı: ","Proje Başlığı: ","Proje Başlığı: ","Proje Başlığı: ","Proje Başlığı: ","Proje Başlığı: ","Proje Başlığı: ","Proje Başlığı: ","Proje Başlığı: ","Proje Başlığı: ","Proje Başlığı: ","Proje Başlığı: ","Proje Başlığı: ","Proje Başlığı: ","Proje Başlığı: ","Proje Başlığı: ","Proje Başlığı: "]
[null,null,{"$f":"\"Proje Başlığı: \"&IF(ProjeAdi=\"\",\"\",ProjeAdi)","v":"Proje Başlığı: "},"Proje Başlığı: ","Proje Başlığı: ","Proje Başlığı: ","Proje Başlığı: ","Proje Başlığı: ","Proje Başlığı: ","Proje Başlığı: ","Proje Başlığı: ","Proje Başlığı: ","Proje Başlığı: ","Proje Başlığı: ","Proje Başlığı: ","Proje Başlığı: ","Proje Başlığı: ","Proje Başlığı: ","Proje Başlığı: ","Proje Başlığı: ","Proje Başlığı: ","Proje Başlığı: ","Proje Başlığı: ","Proje Başlığı: ","Proje Başlığı: ","Proje Başlığı: ","Proje Başlığı: ","Proje Başlığı: ","Proje Başlığı: ","Proje Başlığı: ","Proje Başlığı: ","Proje Başlığı: "]
[null,null,"Danışmanlık Başlangıç Tarihi:",null,null,null,null,null,null,null,null,null,{"$f":"IF(Baslangic=\"\",\"\",Baslangic)","v":""},null,null,null,null,"Bitiş Tarihi:",null,null,null,{"$f":"IF(Bitis=\"\",\"\",Bitis)","v":""},null,null,null,null,"Süresi:",null,null,{"$f":"IF(Sure1=\"\",\"\",Sure1)&\" \"&IF(Sure2=\"\",\"\",Sure2)","v":" "}]
[null,null,"Ödenecek Ücret:",null,null,null,null,null,null,null,{"$f":"ParaBirimi&\"/Ay\"","v":"TL/Ay"},null,null,null,null,null,null,"Süre (Ay)",null,null,null,null,{"$f":"\"Maliyet (\"&ParaBirimi&\")\"","v":"Maliyet (TL)"}]
[null,null,"Öğretim Üyesi (%64)",null,null,null,null,null,null,null,{"$f":"'Danışmanlık Bilgileri'!W98","v":1000},null,null,null,null,null,null,{"$f":"'Danışmanlık Bilgileri'!AD98","v":6},null,null,null,null,{"$f":"'Danışmanlık Bilgileri'!AH98","v":6000}]
[null,null,"Üniversite Payı (%36)",null,null,null,null,null,null,null,null,null,null,null,null,null,null,null,null,null,null,null,{"$f":"'Danışmanlık Bilgileri'!AH99","v":3375}]
[null,null,"TOPLAM MALİYET (K.D.V. HARİÇ)",null,null,null,null,null,null,null,null,null,null,null,null,null,null,null,null,null,null,null,{"$f":"'Danışmanlık Bilgileri'!AH100","v":9375}]
[null,null,{"$f":"\"K.D.V. (\"&IF(KDV=\"Muaf\",\"Muaf)\",IF(KDV=8%,\"%8)\",\"%18)\"))","v":"K.D.V. (%18)"},null,null,null,null,null,null,null,null,null,null,null,null,null,null,null,null,null,null,null,{"$f":"IF(KDV=\"Muaf\",0,'Danışmanlık Bilgileri'!AH101)","v":1687.5}]
[null,null,"TOPLAM MALİYET (K.D.V. DAHİL)",null,null,null,null,null,null,null,null,null,null,null,null,null,null,null,null,null,null,null,{"$f":"'Danışmanlık Bilgileri'!AH102","v":11062.5}]
[null,null,{"$f":"\"Ödeme Şekli: Danışmanlık Kodu belirtilerek, Üniversitemizin T.C. Ziraat Bankası ODTÜ Şubesi nezdindeki IBAN: TR 1700 0100 1537 0898 0700 5001 hesabına her ayın 15'ine kadar \"&TEXT(W38/R34,\".00\")&\" \"&ParaBirimi&\" yatırılacaktır. \"&\"488 sayılı damga vergisi kanununun 3 ve 8. maddeleri gereği, Üniversitemiz damga vergisinden muaftır. Damga vergisi \"&IF(TedAdi=\"\",\"\",TedAdi)&\"'a aittir.\"","v":"Ödeme Şekli: Danışmanlık Kodu belirtilerek, Üniversitemizin T.C. Ziraat Bankası ODTÜ Şubesi nezdindeki IBAN: TR 1700 0100 1537 0898 0700 5001 hesabına her ayın 15'ine kadar .1844 TL yatırılacaktır. 488 sayılı damga vergisi kanununun 3 ve 8. maddeleri gereği, Üniversitemiz damga vergisinden muaftır. Damga vergisi 'a aittir."}]
[]
[]
[]
[]
[null,null,"İlgili Kurum",null,null,null,null,null,null,null,null,null,null,null,null,null,null,null,null,null,null,null,null,"Öğretim Üyesi"]
[null,null,{"$f":"'Danışmanlık Bilgileri'!I36","v":0},null,null,null,null,null,null,null,null,null,null,null,null,null,null,null,null,null,null,null,null,{"$f":"IF(PY1_Unvan=\"\",\"\",PY1_Unvan)&\" \"&IF(PY1_Ad=\"\",\"\",PROPER(PY1_Ad))&\" \"&IF(PY1_Soyad=\"\",\"\",UPPER(PY1_Soyad))","v":"  "}]
[null,null,{"$f":"\"Adres: \"&'Danışmanlık Bilgileri'!I38","v":"Adres: "}]
[]
[null,null,{"$f":"\"Tel: \"&'Danışmanlık Bilgileri'!I40&IF('Danışmanlık Bilgileri'!I42=\"\",\"\",\", \"&'Danışmanlık Bilgileri'!I42)","v":"Tel: "}]
[null,null,{"$f":"\"Vergi Dairesi ve Numarası: \"&'Danışmanlık Bilgileri'!AI40&\" \"&'Danışmanlık Bilgileri'!AI42","v":"Vergi Dairesi ve Numarası:  "}]